[Event "Titled Tuesday Blitz March 28 Early 2023"]
[White "Rosenberg, Evan S"]
[Black "Lewtak, Damian"]
[WhiteFideId "2019299"]
[BlackFideId "1141724"]
[WhiteElo "2327"]
[BlackElo "2302"]
[Result "0-1"]
[Round "05"]
[TimeControl "180+2"]
[Date "2023.03.28"]
[WhiteClock "0:00:09"]
[BlackClock "0:00:13"]

1. d4 {[%clk 0:03:00]}  Nf6 {[%clk 0:02:57]} 2. Nf3 {[%clk 0:03:00]}  e6 {[%clk 0:02:51]} 3. g3 {[%clk 0:03:00]}  c5 {[%clk 0:02:51]} 4. Bg2 {[%clk 0:03:00]}  Nc6 {[%clk 0:02:50]} 5. O-O {[%clk 0:03:00]}  Be7 {[%clk 0:02:49]} 6. c4 {[%clk 0:02:51]}  cxd4 {[%clk 0:02:48]} 7. Nxd4 {[%clk 0:02:51]}  d5 {[%clk 0:02:45]} 8. Nc3 {[%clk 0:02:45]}  O-O {[%clk 0:02:42]} 9. cxd5 {[%clk 0:02:40]}  exd5 {[%clk 0:02:43]} 10. Bg5 {[%clk 0:02:33]}  Nxd4 {[%clk 0:02:38]} 11. Qxd4 {[%clk 0:02:32]}  Be6 {[%clk 0:02:38]} 12. Rfd1 {[%clk 0:02:25]}  Qa5 {[%clk 0:02:29]} 13. e3 {[%clk 0:02:11]}  Rac8 {[%clk 0:02:21]} 14. Rac1 {[%clk 0:02:08]}  h6 {[%clk 0:02:20]} 15. Bxf6 {[%clk 0:02:01]}  Bxf6 {[%clk 0:02:20]} 16. Qd3 {[%clk 0:02:02]}  Bxc3 {[%clk 0:02:09]} 17. bxc3 {[%clk 0:02:02]}  Rc5 {[%clk 0:01:56]} 18. Rd2 {[%clk 0:01:58]}  Rfc8 {[%clk 0:01:53]} 19. Rdc2 {[%clk 0:01:51]}  b6 {[%clk 0:01:46]} 20. h4 {[%clk 0:01:38]}  Rc4 {[%clk 0:01:44]} 21. Kh2 {[%clk 0:01:21]}  h5 {[%clk 0:01:38]} 22. Bh3 {[%clk 0:01:08]}  Bxh3 {[%clk 0:01:33]} 23. Kxh3 {[%clk 0:01:08]}  g6 {[%clk 0:01:32]} 24. Kg2 {[%clk 0:01:05]}  R8c5 {[%clk 0:01:27]} 25. Rd2 {[%clk 0:00:53]}  Ra4 {[%clk 0:00:57]} 26. Rcc2 {[%clk 0:00:50]}  Ra3 {[%clk 0:00:54]} 27. Qd4 {[%clk 0:00:47]}  Qa4 {[%clk 0:00:47]} 28. Qf6 {[%clk 0:00:40]}  Qe4+ {[%clk 0:00:44]} 29. Kh2 {[%clk 0:00:40]}  Qe6 {[%clk 0:00:42]} 30. Qxe6 {[%clk 0:00:36]}  fxe6 {[%clk 0:00:43]} 31. e4 {[%clk 0:00:37]}  dxe4 {[%clk 0:00:39]} 32. Re2 {[%clk 0:00:33]}  Rc4 {[%clk 0:00:35]} 33. Re3 {[%clk 0:00:32]}  Kf7 {[%clk 0:00:34]} 34. Kh3 {[%clk 0:00:32]}  Rca4 {[%clk 0:00:34]} 35. Rce2 {[%clk 0:00:30]}  Rxa2 {[%clk 0:00:29]} 36. Rxe4 {[%clk 0:00:21]}  Rxe2 {[%clk 0:00:23]} 37. Rxa4 {[%clk 0:00:20]}  a5 {[%clk 0:00:23]} 38. f4 {[%clk 0:00:14]}  Ke7 {[%clk 0:00:20]} 39. Rc4 {[%clk 0:00:13]}  Kd6 {[%clk 0:00:18]} 40. Rc8 {[%clk 0:00:13]}  a4 {[%clk 0:00:18]} 41. c4 {[%clk 0:00:11]}  a3 {[%clk 0:00:17]} 42. Ra8 {[%clk 0:00:11]}  a2 {[%clk 0:00:17]} 43. Ra6 {[%clk 0:00:10]}  Kc5 {[%clk 0:00:17]} 44. g4 {[%clk 0:00:08]}  Kxc4 {[%clk 0:00:13]} 45. gxh5 {[%clk 0:00:07]}  gxh5 {[%clk 0:00:14]} 46. Kg3 {[%clk 0:00:08]}  b5 {[%clk 0:00:14]} 47. Kf3 {[%clk 0:00:08]}  Rc2 {[%clk 0:00:13]} 48. Ke4 {[%clk 0:00:08]}  b4 {[%clk 0:00:13]} 49. Ke5 {[%clk 0:00:09]}  b3 {[%clk 0:00:13]} 50. Kxe6 {[%clk 0:00:09]}  b2 {[%clk 0:00:13]} 0-1


[Site "https://www.chess.com"]

[Event "Titled Tuesday Blitz March 28 Early 2023"]
[White "Lehtosaari, Mauri"]
[Black "Erigaisi Arjun"]
[WhiteFideId "501999"]
[BlackFideId "35009192"]
[WhiteElo "2513"]
[BlackElo "2737"]
[Result "0-1"]
[Round "05"]
[TimeControl "180+2"]
[Date "2023.03.28"]
[WhiteClock "0:00:02"]
[BlackClock "0:00:44"]

1. d4 {[%clk 0:03:00]}  c5 {[%clk 0:02:58]} 2. e3 {[%clk 0:02:59]}  g6 {[%clk 0:02:58]} 3. Nf3 {[%clk 0:02:59]}  Bg7 {[%clk 0:02:58]} 4. Be2 {[%clk 0:02:58]}  Nf6 {[%clk 0:02:59]} 5. O-O {[%clk 0:02:59]}  O-O {[%clk 0:03:00]} 6. b3 {[%clk 0:02:59]}  b6 {[%clk 0:02:59]} 7. Bb2 {[%clk 0:02:59]}  Bb7 {[%clk 0:03:00]} 8. dxc5 {[%clk 0:02:58]}  bxc5 {[%clk 0:03:00]} 9. c4 {[%clk 0:02:58]}  d6 {[%clk 0:03:00]} 10. Nc3 {[%clk 0:02:57]}  Nbd7 {[%clk 0:03:01]} 11. Rc1 {[%clk 0:02:56]}  a5 {[%clk 0:03:01]} 12. h3 {[%clk 0:02:55]}  Bc6 {[%clk 0:03:01]} 13. Nd2 {[%clk 0:02:18]}  a4 {[%clk 0:02:57]} 14. Nb5 {[%clk 0:02:15]}  Qb6 {[%clk 0:02:49]} 15. Bf3 {[%clk 0:02:08]}  Rfb8 {[%clk 0:02:42]} 16. Bxc6 {[%clk 0:02:05]}  Qxc6 {[%clk 0:02:43]} 17. Qc2 {[%clk 0:02:02]}  d5 {[%clk 0:02:42]} 18. Rfd1 {[%clk 0:01:55]}  axb3 {[%clk 0:02:40]} 19. axb3 {[%clk 0:01:56]}  e6 {[%clk 0:02:34]} 20. Nf3 {[%clk 0:01:54]}  Ra2 {[%clk 0:02:29]} 21. Qb1 {[%clk 0:01:53]}  Ra6 {[%clk 0:02:27]} 22. Ne5 {[%clk 0:01:46]}  Qb7 {[%clk 0:02:25]} 23. Nxd7 {[%clk 0:01:46]}  Nxd7 {[%clk 0:02:26]} 24. Bxg7 {[%clk 0:01:45]}  Kxg7 {[%clk 0:02:27]} 25. h4 {[%clk 0:01:34]}  Kg8 {[%clk 0:02:23]} 26. h5 {[%clk 0:01:31]}  Nf6 {[%clk 0:02:23]} 27. hxg6 {[%clk 0:01:30]}  hxg6 {[%clk 0:02:24]} 28. Qb2 {[%clk 0:01:30]}  Qe7 {[%clk 0:02:20]} 29. Qe5 {[%clk 0:01:25]}  Rbb6 {[%clk 0:02:09]} 30. Ra1 {[%clk 0:01:21]}  Ng4 {[%clk 0:02:04]} 31. Qg3 {[%clk 0:01:04]}  Nf6 {[%clk 0:01:51]} 32. Qh4 {[%clk 0:00:51]}  Kg7 {[%clk 0:01:44]} 33. g3 {[%clk 0:00:44]}  Rxa1 {[%clk 0:01:39]} 34. Rxa1 {[%clk 0:00:43]}  Rb8 {[%clk 0:01:40]} 35. Ra7 {[%clk 0:00:39]}  Qf8 {[%clk 0:01:38]} 36. Qf4 {[%clk 0:00:37]}  Ra8 {[%clk 0:01:22]} 37. Rxa8 {[%clk 0:00:20]}  Qxa8 {[%clk 0:01:23]} 38. Qe5 {[%clk 0:00:18]}  dxc4 {[%clk 0:01:17]} 39. bxc4 {[%clk 0:00:18]}  Qe4 {[%clk 0:01:17]} 40. Qxc5 {[%clk 0:00:17]}  e5 {[%clk 0:01:17]} 41. Qb4 {[%clk 0:00:15]}  Ng4 {[%clk 0:01:15]} 42. Qd2 {[%clk 0:00:14]}  Qxc4 {[%clk 0:01:12]} 43. Nd6 {[%clk 0:00:15]}  Qc6 {[%clk 0:01:08]} 44. Qd3 {[%clk 0:00:09]}  Qh1+ {[%clk 0:01:06]} 45. Kxh1 {[%clk 0:00:07]}  Nxf2+ {[%clk 0:01:07]} 46. Kg2 {[%clk 0:00:08]}  Nxd3 {[%clk 0:01:07]} 47. Kf3 {[%clk 0:00:08]}  Kf6 {[%clk 0:01:04]} 48. Ne4+ {[%clk 0:00:08]}  Ke7 {[%clk 0:01:04]} 49. Ke2 {[%clk 0:00:07]}  Nb4 {[%clk 0:01:04]} 50. Kf3 {[%clk 0:00:07]}  f5 {[%clk 0:01:01]} 51. Nc5 {[%clk 0:00:08]}  Kd6 {[%clk 0:00:58]} 52. Nb3 {[%clk 0:00:07]}  e4+ {[%clk 0:00:58]} 53. Kf4 {[%clk 0:00:06]}  Nd5+ {[%clk 0:00:57]} 54. Kg5 {[%clk 0:00:06]}  Nxe3 {[%clk 0:00:58]} 55. Kxg6 {[%clk 0:00:07]}  Ke5 {[%clk 0:00:57]} 56. Kg5 {[%clk 0:00:07]}  Nf1 {[%clk 0:00:56]} 57. Kh4 {[%clk 0:00:07]}  e3 {[%clk 0:00:55]} 58. Nc1 {[%clk 0:00:07]}  Ke4 {[%clk 0:00:55]} 59. Ne2 {[%clk 0:00:07]}  Nd2 {[%clk 0:00:51]} 60. Kg5 {[%clk 0:00:06]}  Nb3 {[%clk 0:00:46]} 61. Kh4 {[%clk 0:00:05]}  Kf3 {[%clk 0:00:46]} 62. Nc3 {[%clk 0:00:03]}  Nd4 {[%clk 0:00:44]} 63. Kg5 {[%clk 0:00:03]}  Kxg3 {[%clk 0:00:43]} 64. Kf6 {[%clk 0:00:02]}  Kf3 {[%clk 0:00:41]} 65. Ke5 {[%clk 0:00:03]}  e2 {[%clk 0:00:41]} 66. Nxe2 {[%clk 0:00:02]}  Kxe2 {[%clk 0:00:42]} 67. Kxd4 {[%clk 0:00:01]}  f4 {[%clk 0:00:43]} 68. Ke4 {[%clk 0:00:02]}  f3 {[%clk 0:00:44]} 0-1


[Site "https://www.chess.com"]

[Event "Titled Tuesday Blitz March 28 Early 2023"]
[White "Corrales Jimenez, Fidel"]
[Black "Da Silva, Lindolfo Luiz"]
[WhiteFideId "3506690"]
[BlackFideId "2106558"]
[WhiteElo "2541"]
[BlackElo "2503"]
[Result "1-0"]
[Round "05"]
[TimeControl "180+2"]
[Date "2023.03.28"]
[WhiteClock "0:01:56"]
[BlackClock "0:01:29"]

1. d4 {[%clk 0:02:55]}  Nf6 {[%clk 0:02:57]} 2. b3 {[%clk 0:02:50]}  g6 {[%clk 0:02:58]} 3. Bb2 {[%clk 0:02:44]}  Bg7 {[%clk 0:02:59]} 4. g3 {[%clk 0:02:43]}  d6 {[%clk 0:02:59]} 5. Bg2 {[%clk 0:02:43]}  O-O {[%clk 0:02:59]} 6. Nd2 {[%clk 0:02:43]}  Nbd7 {[%clk 0:02:59]} 7. e3 {[%clk 0:02:43]}  e5 {[%clk 0:02:59]} 8. Ne2 {[%clk 0:02:44]}  Re8 {[%clk 0:02:58]} 9. dxe5 {[%clk 0:02:44]}  dxe5 {[%clk 0:02:58]} 10. O-O {[%clk 0:02:45]}  a5 {[%clk 0:02:52]} 11. a4 {[%clk 0:02:45]}  Ra6 {[%clk 0:02:50]} 12. Nc4 {[%clk 0:02:45]}  Qe7 {[%clk 0:02:40]} 13. Nc3 {[%clk 0:02:39]}  Nc5 {[%clk 0:02:34]} 14. Ba3 {[%clk 0:02:39]}  Nfd7 {[%clk 0:02:25]} 15. Nd5 {[%clk 0:02:37]}  Qd8 {[%clk 0:02:23]} 16. Qe2 {[%clk 0:02:24]}  Rae6 {[%clk 0:02:18]} 17. Rad1 {[%clk 0:02:23]}  c6 {[%clk 0:02:17]} 18. Ndb6 {[%clk 0:02:24]}  Qc7 {[%clk 0:02:14]} 19. Nxc8 {[%clk 0:02:13]}  Rxc8 {[%clk 0:02:13]} 20. Bh3 {[%clk 0:02:13]}  f5 {[%clk 0:02:12]} 21. e4 {[%clk 0:02:11]}  Nxe4 {[%clk 0:02:06]} 22. Qxe4 {[%clk 0:02:07]}  fxe4 {[%clk 0:02:03]} 23. Bxe6+ {[%clk 0:02:08]}  Kh8 {[%clk 0:02:02]} 24. Rxd7 {[%clk 0:02:08]}  Qb8 {[%clk 0:02:01]} 25. Nd6 {[%clk 0:02:06]}  Rf8 {[%clk 0:01:36]} 26. Nf7+ {[%clk 0:02:02]}  Rxf7 {[%clk 0:01:34]} 27. Bxf7 {[%clk 0:02:03]}  Qa7 {[%clk 0:01:29]} 28. Rd8+ {[%clk 0:01:56]} 1-0


[Site "https://www.chess.com"]

[Event "Titled Tuesday Blitz March 28 Early 2023"]
[White "Mortazavi, Ali"]
[Black "Ashraf, Artin"]
[WhiteFideId "401323"]
[BlackFideId "22514805"]
[WhiteElo "2339"]
[BlackElo "2188"]
[Result "0-1"]
[Round "05"]
[TimeControl "180+2"]
[Date "2023.03.28"]
[WhiteClock "0:00:09"]
[BlackClock "0:00:08"]

1. Nf3 {[%clk 0:03:00]}  d5 {[%clk 0:02:57]} 2. g3 {[%clk 0:03:01]}  Nc6 {[%clk 0:02:57]} 3. Bg2 {[%clk 0:03:01]}  e5 {[%clk 0:02:57]} 4. d3 {[%clk 0:03:01]}  Nf6 {[%clk 0:02:55]} 5. O-O {[%clk 0:03:01]}  Be7 {[%clk 0:02:52]} 6. Nbd2 {[%clk 0:03:00]}  O-O {[%clk 0:02:47]} 7. e4 {[%clk 0:03:00]}  dxe4 {[%clk 0:02:47]} 8. dxe4 {[%clk 0:03:00]}  a5 {[%clk 0:02:47]} 9. a4 {[%clk 0:02:59]}  Bc5 {[%clk 0:02:46]} 10. h3 {[%clk 0:02:52]}  b6 {[%clk 0:02:45]} 11. Nh4 {[%clk 0:02:40]}  Ba6 {[%clk 0:02:33]} 12. Re1 {[%clk 0:02:40]}  Nb4 {[%clk 0:02:10]} 13. Nf5 {[%clk 0:02:20]}  Re8 {[%clk 0:02:06]} 14. Bf1 {[%clk 0:02:03]}  Bb7 {[%clk 0:02:01]} 15. Bc4 {[%clk 0:01:24]}  Nxe4 {[%clk 0:00:46]} 16. Qg4 {[%clk 0:01:08]}  Bxf2+ {[%clk 0:00:40]} 17. Kf1 {[%clk 0:01:08]}  Nxg3+ {[%clk 0:00:24]} 18. Nxg3 {[%clk 0:00:53]}  Bxg3 {[%clk 0:00:25]} 19. Qxg3 {[%clk 0:00:43]}  Nxc2 {[%clk 0:00:24]} 20. Ne4 {[%clk 0:00:18]}  Bxe4 {[%clk 0:00:11]} 21. Rxe4 {[%clk 0:00:18]}  Nxa1 {[%clk 0:00:09]} 22. Bh6 {[%clk 0:00:14]}  Qf6+ {[%clk 0:00:09]} 23. Qf2 {[%clk 0:00:09]}  Qxf2+ {[%clk 0:00:07]} 24. Kxf2 {[%clk 0:00:09]}  gxh6 {[%clk 0:00:08]} 0-1


[Site "https://www.chess.com"]

[Event "Titled Tuesday Blitz March 28 Early 2023"]
[White "Asadli, Vugar"]
[Black "Tanmay Jain"]
[WhiteFideId "13405764"]
[BlackFideId "45015481"]
[WhiteElo "2598"]
[BlackElo "2032"]
[Result "1-0"]
[Round "05"]
[TimeControl "180+2"]
[Date "2023.03.28"]
[WhiteClock "0:00:17"]
[BlackClock "0:00:02"]

1. e4 {[%clk 0:02:58]}  e5 {[%clk 0:02:55]} 2. Nf3 {[%clk 0:02:57]}  Nc6 {[%clk 0:02:56]} 3. d4 {[%clk 0:02:58]}  exd4 {[%clk 0:02:54]} 4. Bc4 {[%clk 0:02:59]}  d6 {[%clk 0:02:48]} 5. O-O {[%clk 0:02:54]}  Be7 {[%clk 0:02:48]} 6. Nxd4 {[%clk 0:02:53]}  Nf6 {[%clk 0:02:47]} 7. Nc3 {[%clk 0:02:52]}  O-O {[%clk 0:02:47]} 8. h3 {[%clk 0:02:25]}  Re8 {[%clk 0:02:32]} 9. Re1 {[%clk 0:02:18]}  Bf8 {[%clk 0:02:26]} 10. Bg5 {[%clk 0:02:17]}  h6 {[%clk 0:02:19]} 11. Bh4 {[%clk 0:02:17]}  Ne5 {[%clk 0:02:19]} 12. Bb3 {[%clk 0:02:12]}  Ng6 {[%clk 0:02:19]} 13. Bxf6 {[%clk 0:02:04]}  Qxf6 {[%clk 0:02:19]} 14. Nd5 {[%clk 0:02:03]}  Qd8 {[%clk 0:02:19]} 15. Qh5 {[%clk 0:01:53]}  c6 {[%clk 0:01:37]} 16. Nf4 {[%clk 0:01:53]}  Ne5 {[%clk 0:01:30]} 17. Nf3 {[%clk 0:01:52]}  Qf6 {[%clk 0:01:27]} 18. Nxe5 {[%clk 0:01:50]}  dxe5 {[%clk 0:01:28]} 19. Nd3 {[%clk 0:01:47]}  Be6 {[%clk 0:01:27]} 20. Re3 {[%clk 0:01:47]}  Bxb3 {[%clk 0:01:25]} 21. axb3 {[%clk 0:01:47]}  a6 {[%clk 0:01:13]} 22. Rae1 {[%clk 0:01:42]}  Rad8 {[%clk 0:01:12]} 23. Rg3 {[%clk 0:01:41]}  g6 {[%clk 0:00:52]} 24. Qg4 {[%clk 0:01:36]}  c5 {[%clk 0:00:45]} 25. h4 {[%clk 0:01:34]}  b5 {[%clk 0:00:44]} 26. h5 {[%clk 0:01:33]}  g5 {[%clk 0:00:38]} 27. c4 {[%clk 0:01:25]}  Rd4 {[%clk 0:00:37]} 28. Rc1 {[%clk 0:01:12]}  Qd6 {[%clk 0:00:35]} 29. Ne1 {[%clk 0:01:06]}  Rd8 {[%clk 0:00:31]} 30. Nf3 {[%clk 0:01:04]}  Rd3 {[%clk 0:00:29]} 31. Kh2 {[%clk 0:00:54]}  Bg7 {[%clk 0:00:27]} 32. cxb5 {[%clk 0:00:46]}  axb5 {[%clk 0:00:28]} 33. Ng1 {[%clk 0:00:39]}  Qe7 {[%clk 0:00:22]} 34. Ne2 {[%clk 0:00:38]}  Rd2 {[%clk 0:00:20]} 35. Rgc3 {[%clk 0:00:36]}  R8d3 {[%clk 0:00:16]} 36. Rxc5 {[%clk 0:00:31]}  Rxb2 {[%clk 0:00:15]} 37. Ng3 {[%clk 0:00:29]}  Rdd2 {[%clk 0:00:11]} 38. Rc8+ {[%clk 0:00:29]}  Bf8 {[%clk 0:00:11]} 39. Nf5 {[%clk 0:00:28]}  Qe6 {[%clk 0:00:11]} 40. R1c6 {[%clk 0:00:27]}  Qd7 {[%clk 0:00:02]} 41. Rxh6 {[%clk 0:00:17]} 1-0


[Site "https://www.chess.com"]

[Event "Titled Tuesday Blitz March 28 Early 2023"]
[White "Jaskolka, Tomasz"]
[Black "Zubritskiy, Artyom"]
[WhiteFideId "1170791"]
[BlackFideId "4181247"]
[WhiteElo "2155"]
[BlackElo "2419"]
[Result "1-0"]
[Round "05"]
[TimeControl "180+2"]
[Date "2023.03.28"]
[WhiteClock "0:00:04"]
[BlackClock "0:00:01"]

1. d4 {[%clk 0:03:00]}  Nc6 {[%clk 0:02:57]} 2. Nf3 {[%clk 0:02:54]}  d6 {[%clk 0:02:58]} 3. g3 {[%clk 0:02:54]}  g6 {[%clk 0:02:57]} 4. Bg2 {[%clk 0:02:55]}  Bg7 {[%clk 0:02:58]} 5. b3 {[%clk 0:02:54]}  e5 {[%clk 0:02:56]} 6. c3 {[%clk 0:02:34]}  e4 {[%clk 0:02:53]} 7. Nfd2 {[%clk 0:02:34]}  f5 {[%clk 0:02:54]} 8. e3 {[%clk 0:02:34]}  Nf6 {[%clk 0:02:53]} 9. Bb2 {[%clk 0:02:34]}  O-O {[%clk 0:02:51]} 10. c4 {[%clk 0:02:35]}  g5 {[%clk 0:02:37]} 11. a3 {[%clk 0:02:31]}  Qe8 {[%clk 0:02:35]} 12. Nc3 {[%clk 0:02:30]}  a6 {[%clk 0:02:16]} 13. h4 {[%clk 0:02:28]}  h6 {[%clk 0:02:12]} 14. hxg5 {[%clk 0:02:27]}  hxg5 {[%clk 0:02:13]} 15. b4 {[%clk 0:01:57]}  Bd7 {[%clk 0:02:08]} 16. Qb3 {[%clk 0:01:56]}  Qf7 {[%clk 0:02:05]} 17. Bf1 {[%clk 0:01:46]}  Ng4 {[%clk 0:01:37]} 18. c5 {[%clk 0:01:33]}  Qxb3 {[%clk 0:00:53]} 19. Nxb3 {[%clk 0:01:34]}  Be6 {[%clk 0:00:47]} 20. d5 {[%clk 0:01:03]}  Bxc3+ {[%clk 0:00:46]} 21. Bxc3 {[%clk 0:01:03]}  Bxd5 {[%clk 0:00:47]} 22. Rh8+ {[%clk 0:00:45]}  Kf7 {[%clk 0:00:47]} 23. Rh7+ {[%clk 0:00:46]}  Kg6 {[%clk 0:00:40]} 24. Rg7+ {[%clk 0:00:44]}  Kh6 {[%clk 0:00:40]} 25. Nd2 {[%clk 0:00:10]}  Rf7 {[%clk 0:00:35]} 26. Rxf7 {[%clk 0:00:10]}  Bxf7 {[%clk 0:00:36]} 27. Be2 {[%clk 0:00:11]}  Nge5 {[%clk 0:00:34]} 28. O-O-O {[%clk 0:00:09]}  dxc5 {[%clk 0:00:20]} 29. bxc5 {[%clk 0:00:09]}  Rd8 {[%clk 0:00:14]} 30. g4 {[%clk 0:00:09]}  Be6 {[%clk 0:00:09]} 31. Rh1+ {[%clk 0:00:09]}  Kg6 {[%clk 0:00:08]} 32. gxf5+ {[%clk 0:00:08]}  Bxf5 {[%clk 0:00:09]} 33. Nf1 {[%clk 0:00:08]}  Nd3+ {[%clk 0:00:09]} 34. Kb1 {[%clk 0:00:07]}  g4 {[%clk 0:00:08]} 35. Ng3 {[%clk 0:00:08]}  Nxf2 {[%clk 0:00:09]} 36. Rf1 {[%clk 0:00:08]}  Nd3 {[%clk 0:00:06]} 37. Nxf5 {[%clk 0:00:08]}  Rd5 {[%clk 0:00:04]} 38. Bxg4 {[%clk 0:00:08]}  Rxc5 {[%clk 0:00:04]} 39. Bd4 {[%clk 0:00:06]}  Rb5+ {[%clk 0:00:04]} 40. Kc2 {[%clk 0:00:06]}  Nxd4+ {[%clk 0:00:02]} 41. exd4 {[%clk 0:00:06]}  Rb2+ {[%clk 0:00:02]} 42. Kc3 {[%clk 0:00:07]}  Rg2 {[%clk 0:00:03]} 43. Ne7+ {[%clk 0:00:07]}  Kg5 {[%clk 0:00:02]} 44. Be6 {[%clk 0:00:07]}  Rg3 {[%clk 0:00:03]} 45. Nf5 {[%clk 0:00:04]}  Rg2 {[%clk 0:00:02]} 46. Ne3 {[%clk 0:00:04]}  Rg3 {[%clk 0:00:03]} 47. Nf5 {[%clk 0:00:05]}  Rg2 {[%clk 0:00:02]} 48. d5 {[%clk 0:00:05]}  Nf4 {[%clk 0:00:02]} 49. Kd4 {[%clk 0:00:04]}  Rd2+ {[%clk 0:00:01]} 50. Ke5 {[%clk 0:00:03]}  Ng6+ {[%clk 0:00:01]} 51. Kxe4 {[%clk 0:00:03]}  Re2+ {[%clk 0:00:02]} 52. Ne3 {[%clk 0:00:03]}  Ra2 {[%clk 0:00:03]} 53. Rg1+ {[%clk 0:00:03]}  Kf6 {[%clk 0:00:03]} 54. Bf5 {[%clk 0:00:04]}  Ne7 {[%clk 0:00:04]} 55. Be6 {[%clk 0:00:04]}  Ng6 {[%clk 0:00:03]} 56. Ng4+ {[%clk 0:00:05]}  Ke7 {[%clk 0:00:04]} 57. Ne3 {[%clk 0:00:04]}  Nf8 {[%clk 0:00:03]} 58. Rg7+ {[%clk 0:00:04]}  Kd6 {[%clk 0:00:02]} 59. Nf5+ {[%clk 0:00:03]}  Kc5 {[%clk 0:00:02]} 60. Rxc7+ {[%clk 0:00:03]}  Kb6 {[%clk 0:00:03]} 61. Rf7 {[%clk 0:00:04]}  Ng6 {[%clk 0:00:03]} 62. Rf6 {[%clk 0:00:04]}  Nh8 {[%clk 0:00:01]} 63. d6 {[%clk 0:00:04]} 1-0


[Site "https://www.chess.com"]

[Event "Titled Tuesday Blitz March 28 Early 2023"]
[White "Novikov, Evgenij"]
[Black "Korchmar, Vasiliy"]
[WhiteFideId "4125380"]
[BlackFideId "24131750"]
[WhiteElo "2242"]
[BlackElo "2370"]
[Result "1-0"]
[Round "05"]
[TimeControl "180+2"]
[Date "2023.03.28"]
[WhiteClock "0:00:18"]
[BlackClock "0:00:02"]

1. d4 {[%clk 0:03:00]}  d5 {[%clk 0:02:59]} 2. c4 {[%clk 0:02:59]}  c6 {[%clk 0:02:59]} 3. Nf3 {[%clk 0:02:58]}  Nf6 {[%clk 0:02:59]} 4. e3 {[%clk 0:02:56]}  e6 {[%clk 0:02:59]} 5. Nc3 {[%clk 0:02:54]}  Nbd7 {[%clk 0:02:59]} 6. Bd3 {[%clk 0:02:48]}  dxc4 {[%clk 0:02:58]} 7. Bxc4 {[%clk 0:02:49]}  b5 {[%clk 0:02:59]} 8. Bd3 {[%clk 0:02:48]}  b4 {[%clk 0:02:59]} 9. Ne4 {[%clk 0:02:45]}  Nxe4 {[%clk 0:02:58]} 10. Bxe4 {[%clk 0:02:45]}  Bb7 {[%clk 0:02:59]} 11. O-O {[%clk 0:02:44]}  Be7 {[%clk 0:02:58]} 12. Qc2 {[%clk 0:02:34]}  Rc8 {[%clk 0:02:49]} 13. Ne5 {[%clk 0:02:29]}  Nxe5 {[%clk 0:02:38]} 14. dxe5 {[%clk 0:02:30]}  Qc7 {[%clk 0:02:38]} 15. f4 {[%clk 0:02:21]}  c5 {[%clk 0:02:32]} 16. Bxb7 {[%clk 0:02:00]}  Qxb7 {[%clk 0:02:32]} 17. e4 {[%clk 0:02:01]}  O-O {[%clk 0:02:20]} 18. f5 {[%clk 0:01:52]}  c4 {[%clk 0:02:19]} 19. f6 {[%clk 0:01:40]}  Bc5+ {[%clk 0:02:16]} 20. Kh1 {[%clk 0:01:39]}  Rfd8 {[%clk 0:01:41]} 21. fxg7 {[%clk 0:01:11]}  Rd4 {[%clk 0:01:19]} 22. Be3 {[%clk 0:01:02]}  Qxe4 {[%clk 0:01:18]} 23. Qf2 {[%clk 0:01:02]}  Rc7 {[%clk 0:01:07]} 24. Bxd4 {[%clk 0:00:56]}  Bxd4 {[%clk 0:01:07]} 25. Qf6 {[%clk 0:00:55]}  Rd7 {[%clk 0:00:30]} 26. Rae1 {[%clk 0:00:38]}  Qg6 {[%clk 0:00:29]} 27. Qf3 {[%clk 0:00:33]}  Bxb2 {[%clk 0:00:23]} 28. Qc6 {[%clk 0:00:30]}  Rd2 {[%clk 0:00:20]} 29. Rf6 {[%clk 0:00:24]}  Qxg7 {[%clk 0:00:04]} 30. Qc8+ {[%clk 0:00:19]}  Qf8 {[%clk 0:00:04]} 31. Qxc4 {[%clk 0:00:20]}  Qa8 {[%clk 0:00:02]} 32. Qg4+ {[%clk 0:00:18]}  Kf8 {[%clk 0:00:02]} 33. Ref1 {[%clk 0:00:18]} 1-0


[Site "https://www.chess.com"]

[Event "Titled Tuesday Blitz March 28 Early 2023"]
[White "Bashirli, Nail"]
[Black "Kubatko, Ivan"]
[WhiteFideId "13406809"]
[BlackFideId "24111473"]
[WhiteElo "2338"]
[BlackElo "2285"]
[Result "0-1"]
[Round "05"]
[TimeControl "180+2"]
[Date "2023.03.28"]
[WhiteClock "0:00:12"]
[BlackClock "0:00:04"]

1. e4 {[%clk 0:02:57]}  d5 {[%clk 0:02:59]} 2. exd5 {[%clk 0:02:56]}  Qxd5 {[%clk 0:03:00]} 3. Nc3 {[%clk 0:02:54]}  Qa5 {[%clk 0:03:00]} 4. Nge2 {[%clk 0:02:50]}  Nf6 {[%clk 0:02:59]} 5. g3 {[%clk 0:02:35]}  h5 {[%clk 0:02:59]} 6. h4 {[%clk 0:02:34]}  Bg4 {[%clk 0:02:58]} 7. Bg2 {[%clk 0:02:33]}  Nc6 {[%clk 0:02:56]} 8. O-O {[%clk 0:02:32]}  O-O-O {[%clk 0:02:54]} 9. b4 {[%clk 0:02:23]}  Nxb4 {[%clk 0:02:37]} 10. Rb1 {[%clk 0:02:13]}  c6 {[%clk 0:02:37]} 11. Rb3 {[%clk 0:02:06]}  e5 {[%clk 0:02:15]} 12. Ra3 {[%clk 0:02:01]}  Qb6 {[%clk 0:02:10]} 13. d3 {[%clk 0:02:00]}  Nbd5 {[%clk 0:02:04]} 14. Nxd5 {[%clk 0:01:57]}  Nxd5 {[%clk 0:01:49]} 15. Rb3 {[%clk 0:01:57]}  Qc7 {[%clk 0:01:23]} 16. c4 {[%clk 0:01:56]}  Nf6 {[%clk 0:00:53]} 17. Be3 {[%clk 0:01:53]}  Qa5 {[%clk 0:00:48]} 18. Re1 {[%clk 0:01:46]}  Bc5 {[%clk 0:00:42]} 19. Bd2 {[%clk 0:01:42]}  Qa6 {[%clk 0:00:25]} 20. Qb1 {[%clk 0:01:42]}  e4 {[%clk 0:00:21]} 21. d4 {[%clk 0:01:39]}  Bxd4 {[%clk 0:00:16]} 22. Nxd4 {[%clk 0:01:36]}  Rxd4 {[%clk 0:00:17]} 23. Be3 {[%clk 0:01:33]}  Rd7 {[%clk 0:00:12]} 24. Qb2 {[%clk 0:01:33]}  Rhd8 {[%clk 0:00:10]} 25. Ra3 {[%clk 0:01:32]}  Qxc4 {[%clk 0:00:04]} 26. Rxa7 {[%clk 0:01:32]}  Rd1 {[%clk 0:00:04]} 27. Ra8+ {[%clk 0:01:32]}  Kd7 {[%clk 0:00:04]} 28. Qxb7+ {[%clk 0:01:21]}  Ke8 {[%clk 0:00:05]} 29. Rxd1 {[%clk 0:01:17]}  Bxd1 {[%clk 0:00:05]} 30. Ra7 {[%clk 0:01:16]}  Qe6 {[%clk 0:00:03]} 31. Bc5 {[%clk 0:01:10]}  Nd7 {[%clk 0:00:03]} 32. Ba3 {[%clk 0:00:59]}  Bf3 {[%clk 0:00:04]} 33. Bf1 {[%clk 0:00:53]}  e3 {[%clk 0:00:04]} 34. Ra8 {[%clk 0:00:45]}  e2 {[%clk 0:00:02]} 35. Rxd8+ {[%clk 0:00:22]}  Kxd8 {[%clk 0:00:02]} 36. Qa8+ {[%clk 0:00:23]}  Kc7 {[%clk 0:00:03]} 37. Qa5+ {[%clk 0:00:23]}  Kc8 {[%clk 0:00:03]} 38. Qa8+ {[%clk 0:00:20]}  Nb8 {[%clk 0:00:03]} 39. Qa4 {[%clk 0:00:10]}  exf1=Q+ {[%clk 0:00:03]} 40. Kxf1 {[%clk 0:00:11]}  Qe2+ {[%clk 0:00:03]} 41. Kg1 {[%clk 0:00:11]}  Qe1+ {[%clk 0:00:03]} 42. Kh2 {[%clk 0:00:12]}  Qh1# {[%clk 0:00:04]} 0-1


[Site "https://www.chess.com"]